[Event "Titled Tuesday Blitz March 07 Early 2023"]
[White "Staudenhocker43"]
[Black "Perez Gormaz, Matias"]
[BlackFideId "3406342"]
[WhiteElo "2425"]
[BlackElo "2362"]
[Result "1-0"]
[Round "03"]
[TimeControl "180+2"]
[Date "2023.03.07"]
[WhiteClock "0:00:21"]
[BlackClock "0:00:04"]

1. c4 {[%clk 0:03:00]}  e5 {[%clk 0:02:58]} 2. Nc3 {[%clk 0:03:01]}  Nf6 {[%clk 0:02:56]} 3. Nf3 {[%clk 0:03:01]}  Nc6 {[%clk 0:02:56]} 4. e3 {[%clk 0:03:01]}  Bb4 {[%clk 0:02:56]} 5. Qc2 {[%clk 0:03:01]}  Bxc3 {[%clk 0:02:57]} 6. Qxc3 {[%clk 0:03:01]}  Qe7 {[%clk 0:02:57]} 7. d4 {[%clk 0:03:01]}  Ne4 {[%clk 0:02:51]} 8. Qd3 {[%clk 0:02:58]}  exd4 {[%clk 0:02:44]} 9. Nxd4 {[%clk 0:02:58]}  Nb4 {[%clk 0:02:36]} 10. Qd1 {[%clk 0:02:51]}  d5 {[%clk 0:02:27]} 11. a3 {[%clk 0:02:47]}  Nc6 {[%clk 0:02:21]} 12. cxd5 {[%clk 0:02:45]}  Ne5 {[%clk 0:02:20]} 13. Bb5+ {[%clk 0:02:43]}  Bd7 {[%clk 0:02:20]} 14. Bxd7+ {[%clk 0:02:43]}  Qxd7 {[%clk 0:02:21]} 15. f3 {[%clk 0:02:20]}  Nc5 {[%clk 0:02:21]} 16. e4 {[%clk 0:02:19]}  c6 {[%clk 0:02:01]} 17. O-O {[%clk 0:02:08]}  cxd5 {[%clk 0:01:59]} 18. exd5 {[%clk 0:02:07]}  O-O {[%clk 0:01:53]} 19. Nc2 {[%clk 0:01:47]}  Rfe8 {[%clk 0:01:39]} 20. b4 {[%clk 0:01:06]}  Na4 {[%clk 0:01:32]} 21. Ne3 {[%clk 0:00:57]}  Rac8 {[%clk 0:01:27]} 22. Qd2 {[%clk 0:00:49]}  Nb6 {[%clk 0:01:09]} 23. Qd4 {[%clk 0:00:30]}  f6 {[%clk 0:00:49]} 24. Bb2 {[%clk 0:00:25]}  Rcd8 {[%clk 0:00:45]} 25. Rad1 {[%clk 0:00:22]}  Na4 {[%clk 0:00:45]} 26. Ba1 {[%clk 0:00:22]}  Nb6 {[%clk 0:00:46]} 27. d6 {[%clk 0:00:21]}  Qe6 {[%clk 0:00:43]} 28. Rfe1 {[%clk 0:00:18]}  Qb3 {[%clk 0:00:40]} 29. Qb2 {[%clk 0:00:17]}  Qxb2 {[%clk 0:00:30]} 30. Bxb2 {[%clk 0:00:18]}  Nec4 {[%clk 0:00:28]} 31. Nxc4 {[%clk 0:00:18]}  Nxc4 {[%clk 0:00:27]} 32. Rxe8+ {[%clk 0:00:18]}  Rxe8 {[%clk 0:00:26]} 33. d7 {[%clk 0:00:18]}  Rd8 {[%clk 0:00:27]} 34. Bc1 {[%clk 0:00:18]}  Ne5 {[%clk 0:00:21]} 35. Be3 {[%clk 0:00:18]}  a6 {[%clk 0:00:18]} 36. Rd6 {[%clk 0:00:17]}  Rxd7 {[%clk 0:00:18]} 37. Rxd7 {[%clk 0:00:18]}  Nxd7 {[%clk 0:00:19]} 38. Bd4 {[%clk 0:00:18]}  Kf7 {[%clk 0:00:19]} 39. Kf2 {[%clk 0:00:19]}  Ke7 {[%clk 0:00:20]} 40. Ke3 {[%clk 0:00:19]}  Kd6 {[%clk 0:00:21]} 41. Ke4 {[%clk 0:00:20]}  g6 {[%clk 0:00:21]} 42. g4 {[%clk 0:00:20]}  Ke6 {[%clk 0:00:22]} 43. h3 {[%clk 0:00:20]}  Nb8 {[%clk 0:00:21]} 44. Bc3 {[%clk 0:00:20]}  Nc6 {[%clk 0:00:21]} 45. a4 {[%clk 0:00:20]}  Ne7 {[%clk 0:00:21]} 46. Kd4 {[%clk 0:00:19]}  Nd5 {[%clk 0:00:19]} 47. Bd2 {[%clk 0:00:20]}  Kd6 {[%clk 0:00:14]} 48. b5 {[%clk 0:00:20]}  axb5 {[%clk 0:00:14]} 49. axb5 {[%clk 0:00:20]}  b6 {[%clk 0:00:14]} 50. Be1 {[%clk 0:00:20]}  Nc7 {[%clk 0:00:13]} 51. Bg3+ {[%clk 0:00:20]}  Kd7 {[%clk 0:00:14]} 52. Bxc7 {[%clk 0:00:20]}  Kxc7 {[%clk 0:00:15]} 53. Kd5 {[%clk 0:00:21]}  Kd7 {[%clk 0:00:15]} 54. f4 {[%clk 0:00:21]}  h6 {[%clk 0:00:15]} 55. h4 {[%clk 0:00:21]}  h5 {[%clk 0:00:04]} 56. gxh5 {[%clk 0:00:21]}  gxh5 {[%clk 0:00:04]} 57. f5 {[%clk 0:00:21]} 1-0


[Site "https://www.chess.com"]

[Event "Titled Tuesday Blitz March 07 Early 2023"]
[White "McLaren, Brian"]
[Black "Melikyan, Gnel"]
[WhiteFideId "2604612"]
[BlackFideId "54109990"]
[WhiteElo "2132"]
[BlackElo "2138"]
[Result "0-1"]
[Round "03"]
[TimeControl "180+2"]
[Date "2023.03.07"]
[WhiteClock "0:00:49"]
[BlackClock "0:00:07"]

1. e4 {[%clk 0:03:00]}  h6 {[%clk 0:02:52]} 2. d4 {[%clk 0:02:59]}  d5 {[%clk 0:02:51]} 3. Nc3 {[%clk 0:02:55]}  dxe4 {[%clk 0:02:51]} 4. Nxe4 {[%clk 0:02:55]}  Nf6 {[%clk 0:02:52]} 5. Nxf6+ {[%clk 0:02:54]}  exf6 {[%clk 0:02:53]} 6. Be3 {[%clk 0:02:53]}  Bd6 {[%clk 0:02:52]} 7. Nf3 {[%clk 0:02:53]}  O-O {[%clk 0:02:52]} 8. Bd3 {[%clk 0:02:51]}  Nc6 {[%clk 0:02:52]} 9. h3 {[%clk 0:02:48]}  Re8 {[%clk 0:02:50]} 10. O-O {[%clk 0:02:47]}  Nb4 {[%clk 0:02:47]} 11. Be2 {[%clk 0:02:46]}  Nd5 {[%clk 0:02:46]} 12. Qd2 {[%clk 0:02:44]}  Nxe3 {[%clk 0:02:18]} 13. fxe3 {[%clk 0:02:43]}  Qe7 {[%clk 0:02:18]} 14. Kf2 {[%clk 0:02:30]}  f5 {[%clk 0:01:52]} 15. Rae1 {[%clk 0:02:29]}  h5 {[%clk 0:01:50]} 16. Bd3 {[%clk 0:02:26]}  h4 {[%clk 0:01:45]} 17. Kg1 {[%clk 0:02:23]}  Bg3 {[%clk 0:01:44]} 18. Re2 {[%clk 0:02:23]}  g6 {[%clk 0:01:39]} 19. e4 {[%clk 0:02:23]}  fxe4 {[%clk 0:01:29]} 20. Rxe4 {[%clk 0:02:22]}  Qd8 {[%clk 0:01:23]} 21. Ng5 {[%clk 0:02:12]}  f5 {[%clk 0:00:58]} 22. Rxe8+ {[%clk 0:02:09]}  Qxe8 {[%clk 0:00:59]} 23. Bc4+ {[%clk 0:02:04]}  Kg7 {[%clk 0:00:59]} 24. Nf3 {[%clk 0:01:53]}  b5 {[%clk 0:00:47]} 25. Bb3 {[%clk 0:01:49]}  Bb7 {[%clk 0:00:45]} 26. c3 {[%clk 0:01:42]}  Qe7 {[%clk 0:00:39]} 27. Ne5 {[%clk 0:01:38]}  Re8 {[%clk 0:00:35]} 28. Nd3 {[%clk 0:01:29]}  Qe2 {[%clk 0:00:30]} 29. Qxe2 {[%clk 0:01:28]}  Rxe2 {[%clk 0:00:31]} 30. d5 {[%clk 0:01:21]}  a5 {[%clk 0:00:20]} 31. a4 {[%clk 0:01:18]}  bxa4 {[%clk 0:00:20]} 32. Bc4 {[%clk 0:01:18]}  Rd2 {[%clk 0:00:16]} 33. Ra1 {[%clk 0:01:12]}  c6 {[%clk 0:00:09]} 34. d6 {[%clk 0:01:11]}  c5 {[%clk 0:00:09]} 35. Nxc5 {[%clk 0:01:07]}  Bf2+ {[%clk 0:00:07]} 36. Kf1 {[%clk 0:01:02]}  Bxc5 {[%clk 0:00:08]} 37. d7 {[%clk 0:01:00]}  Bxg2+ {[%clk 0:00:08]} 38. Ke1 {[%clk 0:00:59]}  Rxd7 {[%clk 0:00:08]} 39. Rxa4 {[%clk 0:00:58]}  Bb6 {[%clk 0:00:08]} 40. Be2 {[%clk 0:00:57]}  Bc6 {[%clk 0:00:08]} 41. Rc4 {[%clk 0:00:56]}  Be4 {[%clk 0:00:08]} 42. Rc8 {[%clk 0:00:55]}  Re7 {[%clk 0:00:08]} 43. Kd2 {[%clk 0:00:54]}  Bf2 {[%clk 0:00:07]} 44. Rb8 {[%clk 0:00:51]}  Rd7+ {[%clk 0:00:07]} 45. Kc1 {[%clk 0:00:49]}  Be3# {[%clk 0:00:07]} 0-1


[Site "https://www.chess.com"]

[Event "Titled Tuesday Blitz March 07 Early 2023"]
[White "Jimenez Almeida, Luis David"]
[Black "Pino Perez, Lazaro"]
[WhiteFideId "22242244"]
[BlackFideId "3517055"]
[WhiteElo "2245"]
[BlackElo "2170"]
[Result "1-0"]
[Round "03"]
[TimeControl "180+2"]
[Date "2023.03.07"]
[WhiteClock "0:00:27"]
[BlackClock "0:00:01"]

1. e4 {[%clk 0:03:00]}  c5 {[%clk 0:02:58]} 2. Nc3 {[%clk 0:03:00]}  g6 {[%clk 0:02:59]} 3. h4 {[%clk 0:02:55]}  h5 {[%clk 0:02:57]} 4. Nh3 {[%clk 0:02:55]}  Bg7 {[%clk 0:02:56]} 5. Ng5 {[%clk 0:02:55]}  Nc6 {[%clk 0:02:56]} 6. d3 {[%clk 0:02:54]}  e6 {[%clk 0:02:55]} 7. Be3 {[%clk 0:02:53]}  Nd4 {[%clk 0:02:51]} 8. Qd2 {[%clk 0:02:52]}  Ne7 {[%clk 0:02:50]} 9. Nd1 {[%clk 0:02:49]}  b6 {[%clk 0:02:40]} 10. c3 {[%clk 0:02:48]}  Ndc6 {[%clk 0:02:40]} 11. g3 {[%clk 0:02:48]}  d5 {[%clk 0:02:21]} 12. f4 {[%clk 0:02:38]}  d4 {[%clk 0:01:37]} 13. Bf2 {[%clk 0:02:37]}  e5 {[%clk 0:01:30]} 14. c4 {[%clk 0:02:25]}  Bg4 {[%clk 0:01:25]} 15. Be2 {[%clk 0:02:23]}  Qd7 {[%clk 0:01:19]} 16. a3 {[%clk 0:02:16]}  Rb8 {[%clk 0:01:14]} 17. b4 {[%clk 0:02:14]}  Bxe2 {[%clk 0:01:06]} 18. Kxe2 {[%clk 0:02:05]}  Qg4+ {[%clk 0:01:06]} 19. Nf3 {[%clk 0:02:01]}  Bh6 {[%clk 0:01:03]} 20. b5 {[%clk 0:01:44]}  Na5 {[%clk 0:00:55]} 21. Qc2 {[%clk 0:01:15]}  exf4 {[%clk 0:00:55]} 22. gxf4 {[%clk 0:01:15]}  Bxf4 {[%clk 0:00:55]} 23. Rg1 {[%clk 0:01:15]}  Qd7 {[%clk 0:00:46]} 24. Bg3 {[%clk 0:01:13]}  Bxg3 {[%clk 0:00:41]} 25. Rxg3 {[%clk 0:01:14]}  Nec6 {[%clk 0:00:39]} 26. Nf2 {[%clk 0:01:13]}  Ne7 {[%clk 0:00:35]} 27. Rag1 {[%clk 0:01:10]}  Nb7 {[%clk 0:00:30]} 28. e5 {[%clk 0:01:02]}  Nf5 {[%clk 0:00:24]} 29. Rg5 {[%clk 0:01:02]}  Ne3 {[%clk 0:00:19]} 30. Qd2 {[%clk 0:01:02]}  Nd8 {[%clk 0:00:10]} 31. Ne4 {[%clk 0:01:01]}  Qh3 {[%clk 0:00:11]} 32. R5g3 {[%clk 0:00:53]}  Qe6 {[%clk 0:00:06]} 33. Nf6+ {[%clk 0:00:46]}  Kf8 {[%clk 0:00:06]} 34. Ng5 {[%clk 0:00:45]}  Qe7 {[%clk 0:00:04]} 35. Rf3 {[%clk 0:00:27]}  Ne6 {[%clk 0:00:01]} 36. Nxf7 {[%clk 0:00:27]} 1-0


[Site "https://www.chess.com"]

[Event "Titled Tuesday Blitz March 07 Early 2023"]
[White "Matutururu, Maxman"]
[Black "Chylewski, Patryk"]
[WhiteFideId "11004487"]
[BlackFideId "1186191"]
[WhiteElo "2407"]
[BlackElo "2163"]
[Result "1/2-1/2"]
[Round "03"]
[TimeControl "180+2"]
[Date "2023.03.07"]
[WhiteClock "0:00:16"]
[BlackClock "0:00:03"]

1. d4 {[%clk 0:03:00]}  Nf6 {[%clk 0:02:59]} 2. c4 {[%clk 0:03:01]}  e6 {[%clk 0:02:59]} 3. Nc3 {[%clk 0:03:01]}  Bb4 {[%clk 0:02:59]} 4. Nf3 {[%clk 0:03:01]}  b6 {[%clk 0:02:51]} 5. e3 {[%clk 0:03:01]}  Bb7 {[%clk 0:02:51]} 6. Bd3 {[%clk 0:03:01]}  O-O {[%clk 0:02:49]} 7. O-O {[%clk 0:03:01]}  d5 {[%clk 0:02:46]} 8. cxd5 {[%clk 0:02:59]}  exd5 {[%clk 0:02:45]} 9. Ne5 {[%clk 0:03:00]}  Nbd7 {[%clk 0:02:41]} 10. f4 {[%clk 0:03:00]}  Ne4 {[%clk 0:02:38]} 11. Nxe4 {[%clk 0:02:58]}  dxe4 {[%clk 0:02:39]} 12. Bc4 {[%clk 0:02:54]}  Nxe5 {[%clk 0:02:31]} 13. fxe5 {[%clk 0:02:55]}  Bd5 {[%clk 0:02:17]} 14. Qb3 {[%clk 0:02:54]}  Bxc4 {[%clk 0:02:13]} 15. Qxc4 {[%clk 0:02:55]}  Be7 {[%clk 0:02:12]} 16. d5 {[%clk 0:02:52]}  a5 {[%clk 0:01:54]} 17. Qxe4 {[%clk 0:02:50]}  Bc5 {[%clk 0:01:54]} 18. Bd2 {[%clk 0:02:41]}  Qe7 {[%clk 0:01:53]} 19. Bc3 {[%clk 0:02:38]}  Rae8 {[%clk 0:01:51]} 20. Rf5 {[%clk 0:02:04]}  g6 {[%clk 0:01:30]} 21. Rf3 {[%clk 0:01:40]}  Bd6 {[%clk 0:01:19]} 22. e6 {[%clk 0:01:10]}  fxe6 {[%clk 0:01:19]} 23. Rxf8+ {[%clk 0:01:09]}  Kxf8 {[%clk 0:01:20]} 24. Rf1+ {[%clk 0:01:06]}  Kg8 {[%clk 0:01:20]} 25. Rf6 {[%clk 0:00:58]}  e5 {[%clk 0:01:02]} 26. Re6 {[%clk 0:00:55]}  Qf7 {[%clk 0:01:01]} 27. Rxe8+ {[%clk 0:00:55]}  Qxe8 {[%clk 0:01:02]} 28. Kf2 {[%clk 0:00:54]}  Qb5 {[%clk 0:00:24]} 29. a4 {[%clk 0:00:47]}  Qe8 {[%clk 0:00:20]} 30. Ke2 {[%clk 0:00:43]}  Qe7 {[%clk 0:00:18]} 31. h3 {[%clk 0:00:37]}  Kf7 {[%clk 0:00:18]} 32. Be1 {[%clk 0:00:32]}  Qf6 {[%clk 0:00:15]} 33. Bh4 {[%clk 0:00:30]}  Qf5 {[%clk 0:00:15]} 34. Qxf5+ {[%clk 0:00:28]}  gxf5 {[%clk 0:00:16]} 35. e4 {[%clk 0:00:27]}  Kg6 {[%clk 0:00:10]} 36. Kf3 {[%clk 0:00:18]}  h5 {[%clk 0:00:10]} 37. Be1 {[%clk 0:00:17]}  Kg5 {[%clk 0:00:09]} 38. Bd2+ {[%clk 0:00:16]}  Kf6 {[%clk 0:00:09]} 39. Be1 {[%clk 0:00:15]}  f4 {[%clk 0:00:08]} 40. Bh4+ {[%clk 0:00:15]}  Kg6 {[%clk 0:00:09]} 41. g3 {[%clk 0:00:15]}  fxg3 {[%clk 0:00:08]} 42. Bxg3 {[%clk 0:00:15]}  Kg5 {[%clk 0:00:07]} 43. Bf2 {[%clk 0:00:15]}  Be7 {[%clk 0:00:05]} 44. b3 {[%clk 0:00:15]}  Bd6 {[%clk 0:00:05]} 45. Be3+ {[%clk 0:00:15]}  Kh4 {[%clk 0:00:03]} 46. Kg2 {[%clk 0:00:15]}  Be7 {[%clk 0:00:03]} 47. Bf2+ {[%clk 0:00:15]}  Kg5 {[%clk 0:00:04]} 48. Kf3 {[%clk 0:00:16]}  Bd6 {[%clk 0:00:03]} 1/2-1/2


[Site "https://www.chess.com"]

[Event "Titled Tuesday Blitz March 07 Early 2023"]
[White "Czopor, Maciej"]
[Black "Koridze, Lile"]
[WhiteFideId "21805431"]
[BlackFideId "13612514"]
[WhiteElo "2324"]
[BlackElo "2047"]
[Result "1-0"]
[Round "03"]
[TimeControl "180+2"]
[Date "2023.03.07"]
[WhiteClock "0:02:06"]
[BlackClock "0:00:55"]

1. c4 {[%clk 0:02:57]}  e5 {[%clk 0:02:59]} 2. Nc3 {[%clk 0:02:57]}  Nf6 {[%clk 0:02:59]} 3. e3 {[%clk 0:02:58]}  d5 {[%clk 0:02:58]} 4. cxd5 {[%clk 0:02:59]}  Nxd5 {[%clk 0:02:59]} 5. Qc2 {[%clk 0:02:58]}  Nc6 {[%clk 0:02:58]} 6. a3 {[%clk 0:02:58]}  Be7 {[%clk 0:02:58]} 7. Nf3 {[%clk 0:02:58]}  Be6 {[%clk 0:02:58]} 8. Be2 {[%clk 0:02:57]}  O-O {[%clk 0:02:57]} 9. O-O {[%clk 0:02:57]}  Qd7 {[%clk 0:02:55]} 10. d3 {[%clk 0:02:56]}  Nxc3 {[%clk 0:02:41]} 11. Qxc3 {[%clk 0:02:56]}  f6 {[%clk 0:02:42]} 12. b4 {[%clk 0:02:56]}  a6 {[%clk 0:02:41]} 13. Bb2 {[%clk 0:02:56]}  Bd5 {[%clk 0:02:41]} 14. Rac1 {[%clk 0:02:56]}  Rad8 {[%clk 0:02:40]} 15. Rfd1 {[%clk 0:02:56]}  Qe8 {[%clk 0:02:31]} 16. Nd2 {[%clk 0:02:55]}  Qg6 {[%clk 0:02:29]} 17. Bf1 {[%clk 0:02:51]}  Be6 {[%clk 0:02:18]} 18. Ne4 {[%clk 0:02:49]}  Bg4 {[%clk 0:02:15]} 19. Rd2 {[%clk 0:02:49]}  f5 {[%clk 0:02:07]} 20. Nc5 {[%clk 0:02:49]}  f4 {[%clk 0:02:05]} 21. Nxb7 {[%clk 0:02:44]}  fxe3 {[%clk 0:01:31]} 22. fxe3 {[%clk 0:02:45]}  Bg5 {[%clk 0:01:14]} 23. Re1 {[%clk 0:02:45]}  Rxf1+ {[%clk 0:01:10]} 24. Kxf1 {[%clk 0:02:42]}  Rf8+ {[%clk 0:01:10]} 25. Rf2 {[%clk 0:02:35]}  Rxf2+ {[%clk 0:01:06]} 26. Kxf2 {[%clk 0:02:35]}  Bh4+ {[%clk 0:01:07]} 27. g3 {[%clk 0:02:31]}  Qf5+ {[%clk 0:00:59]} 28. Kg1 {[%clk 0:02:30]}  Qf3 {[%clk 0:00:56]} 29. Qc4+ {[%clk 0:02:10]}  Kh8 {[%clk 0:00:55]} 30. Qe4 {[%clk 0:02:06]} 1-0


[Site "https://www.chess.com"]

[Event "Titled Tuesday Blitz March 07 Early 2023"]
[White "Fiorito, Joaquin"]
[Black "sissahungrychess"]
[WhiteFideId "180173"]
[WhiteElo "2157"]
[BlackElo "2403"]
[Result "1-0"]
[Round "03"]
[TimeControl "180+2"]
[Date "2023.03.07"]
[WhiteClock "0:00:11"]
[BlackClock "0:00:13"]

1. d4 {[%clk 0:03:00]}  Nf6 {[%clk 0:02:59]} 2. Nc3 {[%clk 0:03:00]}  d5 {[%clk 0:02:59]} 3. Bf4 {[%clk 0:03:00]}  e6 {[%clk 0:02:59]} 4. Nb5 {[%clk 0:03:00]}  Na6 {[%clk 0:02:58]} 5. e3 {[%clk 0:03:00]}  Be7 {[%clk 0:02:55]} 6. Nf3 {[%clk 0:02:57]}  O-O {[%clk 0:02:50]} 7. a3 {[%clk 0:02:57]}  Bd7 {[%clk 0:02:41]} 8. h3 {[%clk 0:02:54]}  c5 {[%clk 0:02:37]} 9. c3 {[%clk 0:02:49]}  Ne4 {[%clk 0:02:25]} 10. a4 {[%clk 0:02:46]}  Be8 {[%clk 0:01:43]} 11. Bd3 {[%clk 0:02:43]}  f5 {[%clk 0:01:41]} 12. Ne5 {[%clk 0:02:39]}  Nd6 {[%clk 0:01:32]} 13. g4 {[%clk 0:02:35]}  c4 {[%clk 0:01:30]} 14. Nxd6 {[%clk 0:02:33]}  Bxd6 {[%clk 0:01:25]} 15. Bc2 {[%clk 0:02:32]}  Qh4 {[%clk 0:01:06]} 16. Bg3 {[%clk 0:02:20]}  Qf6 {[%clk 0:01:01]} 17. gxf5 {[%clk 0:02:17]}  exf5 {[%clk 0:01:01]} 18. Qf3 {[%clk 0:02:18]}  Nc7 {[%clk 0:00:59]} 19. h4 {[%clk 0:02:16]}  Bc6 {[%clk 0:00:45]} 20. h5 {[%clk 0:02:09]}  Ne6 {[%clk 0:00:45]} 21. Bf4 {[%clk 0:02:00]}  Ng5 {[%clk 0:00:36]} 22. Qg2 {[%clk 0:01:42]}  Nf7 {[%clk 0:00:35]} 23. Nxf7 {[%clk 0:01:04]}  Rxf7 {[%clk 0:00:36]} 24. Rg1 {[%clk 0:00:56]}  Bxf4 {[%clk 0:00:28]} 25. exf4 {[%clk 0:00:57]}  Re8+ {[%clk 0:00:28]} 26. Kd2 {[%clk 0:00:57]}  Qh4 {[%clk 0:00:27]} 27. Qg3 {[%clk 0:00:56]}  Qxh5 {[%clk 0:00:26]} 28. Bd1 {[%clk 0:00:51]}  Qh6 {[%clk 0:00:23]} 29. Bf3 {[%clk 0:00:51]}  Rfe7 {[%clk 0:00:20]} 30. Rh1 {[%clk 0:00:48]}  Qf6 {[%clk 0:00:20]} 31. Rh5 {[%clk 0:00:43]}  g6 {[%clk 0:00:19]} 32. Rah1 {[%clk 0:00:42]}  Rg7 {[%clk 0:00:18]} 33. Rg5 {[%clk 0:00:39]}  Re6 {[%clk 0:00:15]} 34. Qg2 {[%clk 0:00:40]}  Rd6 {[%clk 0:00:14]} 35. Re1 {[%clk 0:00:40]}  Re7 {[%clk 0:00:14]} 36. Re5 {[%clk 0:00:40]}  Qf7 {[%clk 0:00:11]} 37. Rgxf5 {[%clk 0:00:40]}  Rf6 {[%clk 0:00:07]} 38. Rxe7 {[%clk 0:00:31]}  Qxe7 {[%clk 0:00:08]} 39. Bxd5+ {[%clk 0:00:31]}  Kg7 {[%clk 0:00:08]} 40. Re5 {[%clk 0:00:30]}  Qf8 {[%clk 0:00:08]} 41. Bxc6 {[%clk 0:00:28]}  bxc6 {[%clk 0:00:08]} 42. Qg5 {[%clk 0:00:23]}  Rxf4 {[%clk 0:00:07]} 43. Qe7+ {[%clk 0:00:17]}  Rf7 {[%clk 0:00:04]} 44. Qxf8+ {[%clk 0:00:15]}  Kxf8 {[%clk 0:00:04]} 45. Ke3 {[%clk 0:00:12]}  h5 {[%clk 0:00:05]} 46. Rc5 {[%clk 0:00:12]}  Rf6 {[%clk 0:00:05]} 47. f3 {[%clk 0:00:05]}  h4 {[%clk 0:00:05]} 48. Kf2 {[%clk 0:00:06]}  Ke7 {[%clk 0:00:04]} 49. Ra5 {[%clk 0:00:05]}  Kd6 {[%clk 0:00:02]} 50. Rxa7 {[%clk 0:00:05]}  g5 {[%clk 0:00:03]} 51. Rg7 {[%clk 0:00:06]}  Rf5 {[%clk 0:00:03]} 52. Kg2 {[%clk 0:00:06]}  Ra5 {[%clk 0:00:03]} 53. Rg6+ {[%clk 0:00:04]}  Kd7 {[%clk 0:00:03]} 54. Kh3 {[%clk 0:00:05]}  Rxa4 {[%clk 0:00:03]} 55. Rxg5 {[%clk 0:00:05]}  Ra2 {[%clk 0:00:04]} 56. Rg2 {[%clk 0:00:06]}  Ke6 {[%clk 0:00:03]} 57. Kxh4 {[%clk 0:00:06]}  Kf5 {[%clk 0:00:04]} 58. Kg3 {[%clk 0:00:07]}  Ra1 {[%clk 0:00:04]} 59. Re2 {[%clk 0:00:07]}  Rg1+ {[%clk 0:00:04]} 60. Kf2 {[%clk 0:00:08]}  Rc1 {[%clk 0:00:04]} 61. Re5+ {[%clk 0:00:08]}  Kf6 {[%clk 0:00:05]} 62. Rc5 {[%clk 0:00:07]}  Rc2+ {[%clk 0:00:05]} 63. Kg3 {[%clk 0:00:08]}  Rxb2 {[%clk 0:00:06]} 64. Rxc6+ {[%clk 0:00:08]}  Kf5 {[%clk 0:00:06]} 65. Rxc4 {[%clk 0:00:09]}  Rc2 {[%clk 0:00:07]} 66. Rc5+ {[%clk 0:00:10]}  Kf6 {[%clk 0:00:06]} 67. Kf4 {[%clk 0:00:11]}  Rc1 {[%clk 0:00:07]} 68. Rc6+ {[%clk 0:00:11]}  Ke7 {[%clk 0:00:08]} 69. d5 {[%clk 0:00:12]}  Kd7 {[%clk 0:00:08]} 70. c4 {[%clk 0:00:13]}  Rd1 {[%clk 0:00:09]} 71. Kf5 {[%clk 0:00:13]}  Re1 {[%clk 0:00:10]} 72. f4 {[%clk 0:00:14]}  Re8 {[%clk 0:00:10]} 73. Rf6 {[%clk 0:00:13]}  Re2 {[%clk 0:00:10]} 74. c5 {[%clk 0:00:14]}  Rd2 {[%clk 0:00:10]} 75. Rd6+ {[%clk 0:00:12]}  Kc7 {[%clk 0:00:10]} 76. Rc6+ {[%clk 0:00:13]}  Kd7 {[%clk 0:00:10]} 77. Rd6+ {[%clk 0:00:13]}  Ke7 {[%clk 0:00:11]} 78. Ke5 {[%clk 0:00:10]}  Re2+ {[%clk 0:00:11]} 79. Kd4 {[%clk 0:00:10]}  Rd2+ {[%clk 0:00:12]} 80. Kc4 {[%clk 0:00:11]}  Rf2 {[%clk 0:00:12]} 81. Rh6 {[%clk 0:00:10]}  Rxf4+ {[%clk 0:00:12]} 82. Kb5 {[%clk 0:00:10]}  Rf1 {[%clk 0:00:13]} 83. Rh7+ {[%clk 0:00:11]}  Kd8 {[%clk 0:00:13]} 84. Kc6 {[%clk 0:00:11]} 1-0


[Site "https://www.chess.com"]

[Event "Titled Tuesday Blitz March 07 Early 2023"]
[White "Yelisieiev, Yevhenii"]
[Black "Zhukova, Natalia"]
[WhiteFideId "14139642"]
[BlackFideId "14101513"]
[WhiteElo "2447"]
[BlackElo "2297"]
[Result "1-0"]
[Round "03"]
[TimeControl "180+2"]
[Date "2023.03.07"]
[WhiteClock "0:00:08"]
[BlackClock "0:00:01"]

1. d4 {[%clk 0:03:00]}  Nf6 {[%clk 0:02:59]} 2. Nf3 {[%clk 0:03:01]}  d5 {[%clk 0:02:59]} 3. c4 {[%clk 0:03:00]}  e6 {[%clk 0:02:59]} 4. Nc3 {[%clk 0:03:00]}  c5 {[%clk 0:02:54]} 5. cxd5 {[%clk 0:03:00]}  Nxd5 {[%clk 0:02:55]} 6. e3 {[%clk 0:02:44]}  Nc6 {[%clk 0:02:54]} 7. Bd3 {[%clk 0:02:39]}  cxd4 {[%clk 0:02:54]} 8. exd4 {[%clk 0:02:39]}  Be7 {[%clk 0:02:50]} 9. O-O {[%clk 0:02:39]}  O-O {[%clk 0:02:50]} 10. Qe2 {[%clk 0:02:35]}  Nf6 {[%clk 0:02:48]} 11. Rd1 {[%clk 0:02:34]}  b6 {[%clk 0:02:40]} 12. Bg5 {[%clk 0:02:25]}  Bb7 {[%clk 0:02:40]} 13. Rac1 {[%clk 0:02:22]}  g6 {[%clk 0:02:39]} 14. Bb1 {[%clk 0:02:14]}  Nd5 {[%clk 0:02:30]} 15. Bxe7 {[%clk 0:01:54]}  Ncxe7 {[%clk 0:02:30]} 16. Ne4 {[%clk 0:01:53]}  Nf5 {[%clk 0:02:19]} 17. Ne5 {[%clk 0:01:49]}  Qh4 {[%clk 0:02:01]} 18. g3 {[%clk 0:01:40]}  Qe7 {[%clk 0:01:38]} 19. h4 {[%clk 0:01:36]}  Nxh4 {[%clk 0:01:07]} 20. gxh4 {[%clk 0:01:31]}  Qxh4 {[%clk 0:01:08]} 21. Qf3 {[%clk 0:00:59]}  f6 {[%clk 0:00:29]} 22. Nc4 {[%clk 0:00:34]}  Rad8 {[%clk 0:00:26]} 23. Qg3 {[%clk 0:00:30]}  Qh5 {[%clk 0:00:22]} 24. Ncd2 {[%clk 0:00:22]}  f5 {[%clk 0:00:15]} 25. Nd6 {[%clk 0:00:21]}  f4 {[%clk 0:00:15]} 26. Qf3 {[%clk 0:00:11]}  Qxf3 {[%clk 0:00:13]} 27. Nxf3 {[%clk 0:00:11]}  Rxd6 {[%clk 0:00:13]} 28. Ne5 {[%clk 0:00:11]}  Rdd8 {[%clk 0:00:09]} 29. Be4 {[%clk 0:00:12]}  Rc8 {[%clk 0:00:09]} 30. Nc4 {[%clk 0:00:10]}  Rfd8 {[%clk 0:00:08]} 31. f3 {[%clk 0:00:09]}  Ba6 {[%clk 0:00:08]} 32. Ne5 {[%clk 0:00:09]}  Ne3 {[%clk 0:00:08]} 33. Rxc8 {[%clk 0:00:08]}  Rxc8 {[%clk 0:00:09]} 34. Rd2 {[%clk 0:00:09]}  Rd8 {[%clk 0:00:09]} 35. Kf2 {[%clk 0:00:09]}  Nc4 {[%clk 0:00:08]} 36. Rc2 {[%clk 0:00:08]}  Nd6 {[%clk 0:00:03]} 37. Nc6 {[%clk 0:00:07]}  Re8 {[%clk 0:00:03]} 38. d5 {[%clk 0:00:06]}  Nxe4+ {[%clk 0:00:01]} 39. fxe4 {[%clk 0:00:07]}  exd5 {[%clk 0:00:01]} 40. exd5 {[%clk 0:00:08]}  Bb7 {[%clk 0:00:01]} 41. Kf3 {[%clk 0:00:08]} 1-0


[Site "https://www.chess.com"]

[Event "Titled Tuesday Blitz March 07 Early 2023"]
[White "Szyszylo, Rafal"]
[Black "Moksh Amit Doshi"]
[WhiteFideId "1109626"]
[BlackFideId "25064967"]
[WhiteElo "1951"]
[BlackElo "2297"]
[Result "0-1"]
[Round "03"]
[TimeControl "180+2"]
[Date "2023.03.07"]
[WhiteClock "0:01:01"]
[BlackClock "0:02:04"]

1. e4 {[%clk 0:02:32]}  c5 {[%clk 0:02:54]} 2. Nf3 {[%clk 0:02:32]}  d6 {[%clk 0:02:55]} 3. d4 {[%clk 0:02:33]}  cxd4 {[%clk 0:02:55]} 4. Nxd4 {[%clk 0:02:34]}  Nf6 {[%clk 0:02:56]} 5. Nc3 {[%clk 0:02:34]}  a6 {[%clk 0:02:56]} 6. Bc4 {[%clk 0:02:35]}  e6 {[%clk 0:02:56]} 7. Bb3 {[%clk 0:02:35]}  Nbd7 {[%clk 0:02:55]} 8. f4 {[%clk 0:02:35]}  Nc5 {[%clk 0:02:55]} 9. e5 {[%clk 0:02:35]}  dxe5 {[%clk 0:02:49]} 10. fxe5 {[%clk 0:02:36]}  Nfd7 {[%clk 0:02:49]} 11. Bf4 {[%clk 0:02:32]}  Be7 {[%clk 0:02:48]} 12. Qd2 {[%clk 0:02:23]}  Qc7 {[%clk 0:02:45]} 13. O-O-O {[%clk 0:02:19]}  b5 {[%clk 0:02:45]} 14. Rhe1 {[%clk 0:02:05]}  Bb7 {[%clk 0:02:42]} 15. Kb1 {[%clk 0:01:55]}  O-O {[%clk 0:02:38]} 16. Bd5 {[%clk 0:01:45]}  b4 {[%clk 0:02:27]} 17. Bxb7 {[%clk 0:01:44]}  bxc3 {[%clk 0:02:20]} 18. Qxc3 {[%clk 0:01:44]}  Qxb7 {[%clk 0:02:20]} 19. Qg3 {[%clk 0:01:30]}  Rab8 {[%clk 0:02:05]} 20. b3 {[%clk 0:01:29]}  Rfc8 {[%clk 0:02:05]} 21. Bh6 {[%clk 0:01:25]}  Bf8 {[%clk 0:02:05]} 22. h4 {[%clk 0:01:06]}  Ne4 {[%clk 0:02:05]} 23. Bd2 {[%clk 0:01:01]}  Nxg3 {[%clk 0:02:04]} 0-1


[Site "https://www.chess.com"]